[Event "Live Chess"]
[Site "Chess.com"]
[Date "2023.05.21"]
[Round "-"]
[White "MJMykh"]
[Black "mach247"]
[Result "1/2-1/2"]
[WhiteElo "1175"]
[BlackElo "1352"]
[TimeControl "300"]
[EndTime "5:18:02 PDT"]
[Termination "Game drawn by repetition"]

1. e4 {[%clk 0:04:58.1]} 1... d5 {[%clk 0:04:59.1]} 2. exd5 {[%clk 0:04:56.7]}
2... Qxd5 {[%clk 0:04:59]} 3. Nc3 {[%clk 0:04:56.4]} 3... Qd8 {[%clk 0:04:58.4]}
4. Bb5+ {[%clk 0:04:55.4]} 4... c6 {[%clk 0:04:57.1]} 5. Bc4 {[%clk 0:04:54.6]}
5... e6 {[%clk 0:04:51]} 6. Nf3 {[%clk 0:04:50.4]} 6... Nf6 {[%clk 0:04:50.2]}
7. O-O {[%clk 0:04:49.5]} 7... Nbd7 {[%clk 0:04:49.3]} 8. d3 {[%clk 0:04:49.1]}
8... a5 {[%clk 0:04:47.2]} 9. a3 {[%clk 0:04:43.8]} 9... Nb6 {[%clk 0:04:46.7]}
10. Bb3 {[%clk 0:04:42.4]} 10... Be7 {[%clk 0:04:42.1]} 11. Bg5 {[%clk
0:04:41.6]} 11... O-O {[%clk 0:04:41.3]} 12. Ne4 {[%clk 0:04:36]} 12... Nbd5
{[%clk 0:04:37.6]} 13. Bxd5 {[%clk 0:04:34.1]} 13... cxd5 {[%clk 0:04:32.9]} 14.
Nxf6+ {[%clk 0:04:33.2]} 14... Bxf6 {[%clk 0:04:32.4]} 15. Bxf6 {[%clk
0:04:32.5]} 15... Qxf6 {[%clk 0:04:32]} 16. Rb1 {[%clk 0:04:32.2]} 16... b5
{[%clk 0:04:29.6]} 17. Qe2 {[%clk 0:04:31.4]} 17... b4 {[%clk 0:04:24.4]} 18.
axb4 {[%clk 0:04:30]} 18... axb4 {[%clk 0:04:23]} 19. Qe5 {[%clk 0:04:29]} 19...
Qe7 {[%clk 0:04:12.1]} 20. Nd4 {[%clk 0:04:25.5]} 20... f6 {[%clk 0:03:51.8]}
21. Qg3 {[%clk 0:04:18]} 21... e5 {[%clk 0:03:49.7]} 22. Nc6 {[%clk 0:04:14.6]}
22... Qb7 {[%clk 0:03:29.2]} 23. Nxe5 {[%clk 0:04:07.4]} 23... fxe5 {[%clk
0:03:28.2]} 24. Qxe5 {[%clk 0:04:06.4]} 24... Qf7 {[%clk 0:03:18.2]} 25. Qd4
{[%clk 0:04:00.1]} 25... Rb8 {[%clk 0:03:09.8]} 26. c4 {[%clk 0:03:52.8]} 26...
dxc4 {[%clk 0:03:08.2]} 27. Qxc4 {[%clk 0:03:52.7]} 27... Qxc4 {[%clk
0:03:06.1]} 28. dxc4 {[%clk 0:03:52.6]} 28... Be6 {[%clk 0:03:04.6]} 29. b3
{[%clk 0:03:51.1]} 29... Rfd8 {[%clk 0:02:53.5]} 30. Rfd1 {[%clk 0:03:44.4]}
30... Rxd1+ {[%clk 0:02:52.3]} 31. Rxd1 {[%clk 0:03:44.3]} 31... Bf5 {[%clk
0:02:38.2]} 32. f3 {[%clk 0:03:30.3]} 32... Bc2 {[%clk 0:02:35.6]} 33. Re1
{[%clk 0:03:27.1]} 33... Bxb3 {[%clk 0:02:34]} 34. Re4 {[%clk 0:03:26]} 34...
Rc8 {[%clk 0:02:31.3]} 35. Kf2 {[%clk 0:03:23.4]} 35... Bxc4 {[%clk 0:02:28.4]}
36. Ke3 {[%clk 0:03:20.6]} 36... b3 {[%clk 0:02:27.4]} 37. Kd2 {[%clk
0:03:18.4]} 37... Bf7 {[%clk 0:02:14.1]} 38. Re1 {[%clk 0:03:14.5]} 38... b2
{[%clk 0:02:07.1]} 39. Rb1 {[%clk 0:02:58.8]} 39... Rb8 {[%clk 0:02:02.5]} 40.
Kc3 {[%clk 0:02:52.4]} 40... Bg6 {[%clk 0:01:56.2]} 41. Rxb2 {[%clk 0:02:51.2]}
41... Rxb2 {[%clk 0:01:55.5]} 42. Kxb2 {[%clk 0:02:50.4]} 42... Bd3 {[%clk
0:01:55.2]} 43. Kc3 {[%clk 0:02:48]} 43... Bf1 {[%clk 0:01:54.6]} 44. g3 {[%clk
0:02:46.3]} 44... Bg2 {[%clk 0:01:53.8]} 45. f4 {[%clk 0:02:44.6]} 45... Kf7
{[%clk 0:01:53.7]} 46. Kd4 {[%clk 0:02:43.7]} 46... Kf6 {[%clk 0:01:53.5]} 47.
Ke3 {[%clk 0:02:42.7]} 47... Kf5 {[%clk 0:01:52.9]} 48. Kf2 {[%clk 0:02:41.3]}
48... Bd5 {[%clk 0:01:51.5]} 49. Ke3 {[%clk 0:02:39.9]} 49... h5 {[%clk
0:01:47.9]} 50. Kd4 {[%clk 0:02:37.3]} 50... Bf3 {[%clk 0:01:46.3]} 51. Ke3
{[%clk 0:02:36.2]} 51... Ba8 {[%clk 0:01:44.8]} 52. Kf2 {[%clk 0:02:33.9]} 52...
g5 {[%clk 0:01:43.1]} 53. fxg5 {[%clk 0:02:32]} 53... Kxg5 {[%clk 0:01:42.4]}
54. h3 {[%clk 0:02:28.9]} 54... Be4 {[%clk 0:01:38.1]} 55. Ke3 {[%clk
0:02:26.4]} 55... Bf5 {[%clk 0:01:37.2]} 56. h4+ {[%clk 0:02:24.1]} 56... Kg4
{[%clk 0:01:35.3]} 57. Kf2 {[%clk 0:02:22.9]} 57... Be4 {[%clk 0:01:34.4]} 58.
Ke3 {[%clk 0:02:20.2]} 58... Bh1 {[%clk 0:01:30.8]} 59. Kf2 {[%clk 0:02:18.8]}
59... Kh3 {[%clk 0:01:29.7]} 60. Kg1 {[%clk 0:02:16.7]} 60... Bd5 {[%clk
0:01:26]} 61. Kf2 {[%clk 0:02:15.7]} 61... Bc6 {[%clk 0:01:24.9]} 62. Kg1 {[%clk
0:02:13.3]} 62... Bb7 {[%clk 0:01:24.1]} 63. Kf2 {[%clk 0:02:12.3]} 63... Bc6
{[%clk 0:01:23.6]} 64. Kg1 {[%clk 0:02:11.3]} 64... Bb7 {[%clk 0:01:23.3]} 65.
Kf2 {[%clk 0:02:10.4]} 65... Bc6 {[%clk 0:01:22.8]} 1/2-1/2

[Event "Live Chess"]
[Site "Chess.com"]
[Date "2023.05.21"]
[Round "-"]
[White "chessfiction"]
[Black "JohanKjeldahl"]
[Result "1-0"]
[WhiteElo "2313"]
[BlackElo "1865"]
[TimeControl "300"]
[EndTime "5:18:09 PDT"]
[Termination "chessfiction won by resignation"]

1. e4 {[%clk 0:04:57.2]} 1... c5 {[%clk 0:04:57.8]} 2. d4 {[%clk 0:04:57.1]}
2... cxd4 {[%clk 0:04:56.3]} 3. c3 {[%clk 0:04:57]} 3... dxc3 {[%clk 0:04:55.2]}
4. Nxc3 {[%clk 0:04:56.9]} 4... e6 {[%clk 0:04:54.3]} 5. Nf3 {[%clk 0:04:55.5]}
5... Nc6 {[%clk 0:04:53.2]} 6. Bd3 {[%clk 0:04:53.5]} 6... a6 {[%clk 0:04:49.3]}
7. Bg5 {[%clk 0:04:52.4]} 7... Be7 {[%clk 0:04:47]} 8. h4 {[%clk 0:04:51.5]}
8... h6 {[%clk 0:04:44.9]} 9. Be3 {[%clk 0:04:50.6]} 9... b5 {[%clk 0:04:42.4]}
10. e5 {[%clk 0:04:48.9]} 10... Bb7 {[%clk 0:04:37.3]} 11. Ne4 {[%clk 0:04:48]}
11... f5 {[%clk 0:04:22.4]} 12. exf6 {[%clk 0:04:46.1]} 12... Nxf6 {[%clk
0:04:21]} 13. Nxf6+ {[%clk 0:04:37.4]} 13... Bxf6 {[%clk 0:04:19.3]} 14. Bg6+
{[%clk 0:04:37.3]} 14... Ke7 {[%clk 0:04:14.1]} 15. g4 {[%clk 0:04:30.7]} 15...
Qc7 {[%clk 0:04:04.3]} 16. Rc1 {[%clk 0:04:26.9]} 16... Rac8 {[%clk 0:03:32.4]}
17. Rg1 {[%clk 0:04:22.2]} 17... Qa5+ {[%clk 0:03:30.6]} 18. Bd2 {[%clk
0:04:19.7]} 18... Qxa2 {[%clk 0:03:24.3]} 19. g5 {[%clk 0:04:16.3]} 19... hxg5
{[%clk 0:03:22.2]} 20. hxg5 {[%clk 0:04:16.2]} 20... Bxb2 {[%clk 0:03:14.9]} 21.
Rc2 {[%clk 0:04:14]} 21... Qa3 {[%clk 0:02:50.2]} 22. Qb1 {[%clk 0:03:51.9]}
22... Qxf3 {[%clk 0:02:45.9]} 23. Qxb2 {[%clk 0:03:49]} 23... e5 {[%clk
0:02:20.2]} 24. Rc3 {[%clk 0:03:22.6]} 24... Qd5 {[%clk 0:02:07.8]} 25. Rd3
{[%clk 0:03:18.4]} 25... Qe6 {[%clk 0:02:01.9]} 26. Be4 {[%clk 0:03:12.2]} 26...
Rh4 {[%clk 0:01:41.4]} 27. Bd5 {[%clk 0:02:59.3]} 27... Qf5 {[%clk 0:01:30.8]}
28. Rf3 {[%clk 0:02:56.6]} 28... Re4+ {[%clk 0:01:25.3]} 29. Bxe4 {[%clk
0:02:54.4]} 29... Qxe4+ {[%clk 0:01:23.5]} 30. Re3 {[%clk 0:02:54]} 30... Qf5
{[%clk 0:01:16.3]} 31. Kd1 {[%clk 0:02:38.9]} 31... d6 {[%clk 0:01:12.8]} 32.
Rge1 {[%clk 0:02:27.7]} 32... Qg4+ {[%clk 0:01:03.1]} 33. f3 {[%clk 0:02:23.8]}
33... Qd4 {[%clk 0:00:54.7]} 34. Qxd4 {[%clk 0:02:11.1]} 34... Nxd4 {[%clk
0:00:53.5]} 35. Bb4 {[%clk 0:02:09.6]} 35... Bxf3+ {[%clk 0:00:47.3]} 36. Kd2
{[%clk 0:02:03.2]} 36... Kd7 {[%clk 0:00:34.4]} 37. Rc3 {[%clk 0:01:57.9]} 37...
Rxc3 {[%clk 0:00:29.6]} 38. Bxc3 {[%clk 0:01:57.8]} 38... g6 {[%clk 0:00:26.7]}
39. Bxd4 {[%clk 0:01:55.7]} 39... exd4 {[%clk 0:00:25.9]} 40. Rf1 {[%clk
0:01:55.3]} 40... Be4 {[%clk 0:00:24.3]} 41. Rf7+ {[%clk 0:01:54.5]} 41... Kc6
{[%clk 0:00:23.3]} 42. Ra7 {[%clk 0:01:54.4]} 42... Kb6 {[%clk 0:00:21.7]} 43.
Rd7 {[%clk 0:01:50.1]} 43... Bf5 {[%clk 0:00:20]} 44. Rxd6+ {[%clk 0:01:48.9]}
44... Ka5 {[%clk 0:00:19.4]} 45. Rxd4 {[%clk 0:01:46.8]} 45... Kb6 {[%clk
0:00:17.4]} 46. Rd5 {[%clk 0:01:42.8]} 46... Kc6 {[%clk 0:00:16]} 47. Rxf5
{[%clk 0:01:39.1]} 47... gxf5 {[%clk 0:00:14]} 48. g6 {[%clk 0:01:38.7]} 1-0

[Event "Live Chess"]
[Site "Chess.com"]
[Date "2023.05.21"]
[Round "-"]
[White "domrobson"]
[Black "yarek"]
[Result "1-0"]
[WhiteElo "1733"]
[BlackElo "1874"]
[TimeControl "300"]
[EndTime "5:18:25 PDT"]
[Termination "domrobson won on time"]

1. d4 {[%clk 0:04:57.7]} 1... g6 {[%clk 0:04:58.5]} 2. c4 {[%clk 0:04:57]} 2...
Bg7 {[%clk 0:04:57]} 3. Nc3 {[%clk 0:04:56.6]} 3... c6 {[%clk 0:04:56.1]} 4. e4
{[%clk 0:04:56]} 4... d6 {[%clk 0:04:49.2]} 5. f4 {[%clk 0:04:54.6]} 5... Nh6
{[%clk 0:04:34.8]} 6. Be2 {[%clk 0:04:50.4]} 6... O-O {[%clk 0:04:28.3]} 7. h3
{[%clk 0:04:44.3]} 7... f5 {[%clk 0:04:19.2]} 8. e5 {[%clk 0:04:39.3]} 8... e6
{[%clk 0:04:03.7]} 9. Be3 {[%clk 0:04:31.7]} 9... Nf7 {[%clk 0:03:51.6]} 10. Qb3
{[%clk 0:04:24.8]} 10... d5 {[%clk 0:03:39.4]} 11. Nf3 {[%clk 0:04:16]} 11...
dxc4 {[%clk 0:03:36.8]} 12. Bxc4 {[%clk 0:04:14]} 12... b5 {[%clk 0:03:32.1]}
13. Bxe6 {[%clk 0:04:10.6]} 13... Bxe6 {[%clk 0:03:28.3]} 14. Qxe6 {[%clk
0:04:09.5]} 14... Qa5 {[%clk 0:02:53]} 15. Ng5 {[%clk 0:04:03.3]} 15... b4
{[%clk 0:02:34.9]} 16. Nxf7 {[%clk 0:03:56.8]} 16... Rxf7 {[%clk 0:02:32.7]} 17.
Nd1 {[%clk 0:03:47]} 17... Qb5 {[%clk 0:02:05.1]} 18. b3 {[%clk 0:03:39.6]}
18... Nd7 {[%clk 0:01:56.7]} 19. Qc4 {[%clk 0:03:38.3]} 19... Qb7 {[%clk
0:01:49.5]} 20. Rc1 {[%clk 0:03:35.9]} 20... c5 {[%clk 0:01:41.3]} 21. O-O
{[%clk 0:03:27.1]} 21... Rc8 {[%clk 0:01:28.7]} 22. d5 {[%clk 0:03:24.1]} 22...
Nb6 {[%clk 0:01:12.5]} 23. Qd3 {[%clk 0:03:12.8]} 23... Nxd5 {[%clk 0:01:09.5]}
24. Bxc5 {[%clk 0:03:07.7]} 24... Rd7 {[%clk 0:00:55.9]} 25. Qc4 {[%clk
0:03:02.1]} 25... Kh8 {[%clk 0:00:50]} 26. Qe2 {[%clk 0:02:41.1]} 26... Bf8
{[%clk 0:00:39.5]} 27. Qf2 {[%clk 0:02:37]} 27... Nc3 {[%clk 0:00:27.7]} 28.
Bxf8 {[%clk 0:02:32.7]} 28... Rxf8 {[%clk 0:00:17.3]} 29. Nxc3 {[%clk
0:02:30.5]} 29... bxc3 {[%clk 0:00:16.8]} 30. Rxc3 {[%clk 0:02:29.9]} 30... Rfd8
{[%clk 0:00:14.2]} 31. Rc2 {[%clk 0:02:25.9]} 31... Rd4 {[%clk 0:00:11.2]} 32.
Rfc1 {[%clk 0:02:23.5]} 32... Rd1+ {[%clk 0:00:08.5]} 33. Rxd1 {[%clk
0:02:21.7]} 33... Rxd1+ {[%clk 0:00:08]} 34. Kh2 {[%clk 0:02:21]} 34... Qe4
{[%clk 0:00:05.8]} 35. Re2 {[%clk 0:02:19.3]} 35... Qb1 {[%clk 0:00:03.9]} 36.
e6 {[%clk 0:02:17.6]} 36... Rh1+ {[%clk 0:00:01.3]} 37. Kg3 {[%clk 0:02:17.5]}
1-0

[Event "Live Chess"]
[Site "Chess.com"]
[Date "2023.05.21"]
[Round "-"]
[White "Oleg03082013"]
[Black "MarkLim1"]
[Result "0-1"]
[WhiteElo "1124"]
[BlackElo "1699"]
[TimeControl "300"]
[EndTime "5:18:41 PDT"]
[Termination "MarkLim1 won by checkmate"]

1. e4 {[%clk 0:04:43.5]} 1... e6 {[%clk 0:04:59.9]} 2. Nf3 {[%clk 0:04:41.9]}
2... d5 {[%clk 0:04:59]} 3. exd5 {[%clk 0:04:39.9]} 3... exd5 {[%clk 0:04:58.9]}
4. d4 {[%clk 0:04:37.7]} 4... Bd6 {[%clk 0:04:58.3]} 5. Nc3 {[%clk 0:04:19.7]}
5... c6 {[%clk 0:04:55.2]} 6. Bd3 {[%clk 0:04:15.5]} 6... Nf6 {[%clk 0:04:51.2]}
7. O-O {[%clk 0:04:12.9]} 7... O-O {[%clk 0:04:50.3]} 8. Bg5 {[%clk 0:04:10.5]}
8... Bg4 {[%clk 0:04:49.2]} 9. h3 {[%clk 0:04:08.8]} 9... Bh5 {[%clk 0:04:47.7]}
10. Ne4 {[%clk 0:04:05.9]} 10... Be7 {[%clk 0:04:42]} 11. Nxf6+ {[%clk
0:04:04.3]} 11... Bxf6 {[%clk 0:04:40.9]} 12. Bxf6 {[%clk 0:04:03.3]} 12... Qxf6
{[%clk 0:04:40]} 13. Qe2 {[%clk 0:04:02.1]} 13... Bxf3 {[%clk 0:04:35]} 14. Qxf3
{[%clk 0:04:00.6]} 14... Qxf3 {[%clk 0:04:33.5]} 15. gxf3 {[%clk 0:04:00]} 15...
Re8 {[%clk 0:04:32.8]} 16. Kh2 {[%clk 0:03:59.7]} 16... Na6 {[%clk 0:04:23.8]}
17. Rg1 {[%clk 0:03:58.3]} 17... Nb4 {[%clk 0:04:21.3]} 18. Bxh7+ {[%clk
0:03:49.4]} 18... Kxh7 {[%clk 0:04:19.8]} 19. Rg4 {[%clk 0:03:48.5]} 19... Re2
{[%clk 0:04:17]} 20. Rag1 {[%clk 0:03:46.1]} 20... Rxf2+ {[%clk 0:04:16]} 21.
Kh1 {[%clk 0:03:44.6]} 21... g6 {[%clk 0:04:15.1]} 22. Rh4+ {[%clk 0:03:41.8]}
22... Kg7 {[%clk 0:04:14]} 23. Rhg4 {[%clk 0:03:40.2]} 23... Rh8 {[%clk
0:04:12.6]} 24. h4 {[%clk 0:03:38.8]} 24... Nxc2 {[%clk 0:04:08.7]} 25. f4
{[%clk 0:03:37.6]} 25... Nxd4 {[%clk 0:04:05.2]} 26. R4g2 {[%clk 0:03:34.8]}
26... Rxh4+ {[%clk 0:04:01.7]} 27. Rh2 {[%clk 0:03:30.9]} 27... Rhxh2# {[%clk
0:04:00.6]} 0-1

[Event "Live Chess"]
[Site "Chess.com"]
[Date "2023.05.21"]
[Round "-"]
[White "BJAW87"]
[Black "HoarseyHorsey"]
[Result "1/2-1/2"]
[WhiteElo "1453"]
[BlackElo "1485"]
[TimeControl "300"]
[EndTime "5:18:44 PDT"]
[Termination "Game drawn - insufficient material"]

1. e4 {[%clk 0:04:58.6]} 1... c5 {[%clk 0:04:58.7]} 2. Nf3 {[%clk 0:04:57.7]}
2... e6 {[%clk 0:04:57.3]} 3. Bc4 {[%clk 0:04:56.8]} 3... d5 {[%clk 0:04:56.3]}
4. exd5 {[%clk 0:04:55.9]} 4... exd5 {[%clk 0:04:56.2]} 5. Bb5+ {[%clk
0:04:53.6]} 5... Nc6 {[%clk 0:04:55]} 6. d4 {[%clk 0:04:45.6]} 6... Nf6 {[%clk
0:04:53.5]} 7. Ne5 {[%clk 0:04:42.6]} 7... Qc7 {[%clk 0:04:50.8]} 8. O-O {[%clk
0:04:29.8]} 8... cxd4 {[%clk 0:04:46.8]} 9. Nxc6 {[%clk 0:04:27.8]} 9... bxc6
{[%clk 0:04:46.7]} 10. Re1+ {[%clk 0:04:21.8]} 10... Be6 {[%clk 0:04:42.4]} 11.
Ba4 {[%clk 0:04:16.8]} 11... Bd6 {[%clk 0:04:41]} 12. h3 {[%clk 0:04:13.9]}
12... O-O {[%clk 0:04:27.6]} 13. Qxd4 {[%clk 0:04:12.3]} 13... c5 {[%clk
0:04:20.5]} 14. Qe3 {[%clk 0:04:06.1]} 14... d4 {[%clk 0:04:14.8]} 15. Qe2
{[%clk 0:03:54.1]} 15... Nd5 {[%clk 0:04:00.4]} 16. Nd2 {[%clk 0:03:37.8]} 16...
Nf4 {[%clk 0:03:54.8]} 17. Qf3 {[%clk 0:03:19.2]} 17... Nxh3+ {[%clk 0:03:22.1]}
18. gxh3 {[%clk 0:03:13]} 18... Qc8 {[%clk 0:03:06.9]} 19. Kg2 {[%clk
0:02:49.9]} 19... Rd8 {[%clk 0:02:51.1]} 20. Ne4 {[%clk 0:02:42.5]} 20... Be5
{[%clk 0:02:39.9]} 21. Ng5 {[%clk 0:02:18.2]} 21... Bd5 {[%clk 0:02:32.9]} 22.
Ne4 {[%clk 0:01:14.8]} 22... f5 {[%clk 0:02:26.7]} 23. Qh5 {[%clk 0:01:10.1]}
23... Bxe4+ {[%clk 0:02:15.6]} 24. Rxe4 {[%clk 0:01:01.3]} 24... fxe4 {[%clk
0:01:33.7]} 25. Qxe5 {[%clk 0:01:01.2]} 25... e3 {[%clk 0:01:17.8]} 26. fxe3
{[%clk 0:00:52.7]} 26... dxe3 {[%clk 0:01:16]} 27. Bxe3 {[%clk 0:00:51.8]} 27...
Rf8 {[%clk 0:01:11.8]} 28. Bb3+ {[%clk 0:00:41.8]} 28... Kh8 {[%clk 0:01:09.1]}
29. Bxc5 {[%clk 0:00:34.3]} 29... Qc6+ {[%clk 0:00:58.4]} 30. Qd5 {[%clk
0:00:29.5]} 30... Qxd5+ {[%clk 0:00:52.7]} 31. Bxd5 {[%clk 0:00:29.4]} 31... Rf5
{[%clk 0:00:44.5]} 32. c4 {[%clk 0:00:27.7]} 32... a5 {[%clk 0:00:39.3]} 33.
Bxa8 {[%clk 0:00:24.9]} 33... Rxc5 {[%clk 0:00:37.8]} 34. b3 {[%clk 0:00:23.5]}
34... Rc8 {[%clk 0:00:36.3]} 35. Bb7 {[%clk 0:00:22.4]} 35... Rc7 {[%clk
0:00:34.8]} 36. Bd5 {[%clk 0:00:21.9]} 36... g6 {[%clk 0:00:34.1]} 37. Re1
{[%clk 0:00:21.3]} 37... Kg7 {[%clk 0:00:33.7]} 38. Re8 {[%clk 0:00:20.3]} 38...
Ra7 {[%clk 0:00:29.5]} 39. Re6 {[%clk 0:00:13.8]} 39... a4 {[%clk 0:00:27.9]}
40. bxa4 {[%clk 0:00:13.1]} 40... Rxa4 {[%clk 0:00:27.6]} 41. c5 {[%clk
0:00:12.6]} 41... Ra7 {[%clk 0:00:26.7]} 42. Re5 {[%clk 0:00:10.4]} 42... Rc7
{[%clk 0:00:26.1]} 43. Kf3 {[%clk 0:00:09.4]} 43... Rxc5 {[%clk 0:00:25.1]} 44.
Re7+ {[%clk 0:00:08.7]} 44... Kf6 {[%clk 0:00:23.6]} 45. Be4 {[%clk 0:00:08.6]}
45... Kxe7 {[%clk 0:00:22.5]} 46. Kf4 {[%clk 0:00:08.5]} 46... Ra5 {[%clk
0:00:21.8]} 47. h4 {[%clk 0:00:08.1]} 47... Rxa2 {[%clk 0:00:20.8]} 48. Kg5
{[%clk 0:00:07.8]} 48... Ra4 {[%clk 0:00:20.3]} 49. h5 {[%clk 0:00:07.5]} 49...
Rxe4 {[%clk 0:00:18.9]} 50. hxg6 {[%clk 0:00:07.4]} 50... hxg6 {[%clk
0:00:18.3]} 51. Kxg6 {[%clk 0:00:07.3]} 51... Re5 {[%clk 0:00:17.5]} 52. Kg7
{[%clk 0:00:06.3]} 52... Rf5 {[%clk 0:00:16.3]} 53. Kg6 {[%clk 0:00:06.2]} 53...
Rf1 {[%clk 0:00:15.1]} 54. Kg5 {[%clk 0:00:06.1]} 54... Ke6 {[%clk 0:00:14.5]}
55. Kg4 {[%clk 0:00:06]} 55... Rf5 {[%clk 0:00:13.3]} 56. Kg3 {[%clk 0:00:05.9]}
56... Kf6 {[%clk 0:00:12.7]} 57. Kg4 {[%clk 0:00:05.8]} 57... Kg6 {[%clk
0:00:11.9]} 58. Kg3 {[%clk 0:00:05.1]} 58... Kg5 {[%clk 0:00:11.4]} 59. Kg2
{[%clk 0:00:04.6]} 59... Kg4 {[%clk 0:00:10.7]} 60. Kg1 {[%clk 0:00:03.8]} 60...
Rf3 {[%clk 0:00:09.7]} 61. Kg2 {[%clk 0:00:03.7]} 61... Kf4 {[%clk 0:00:07.1]}
62. Kh2 {[%clk 0:00:03]} 62... Rf1 {[%clk 0:00:04.8]} 63. Kg2 {[%clk 0:00:02.9]}
63... Rf2+ {[%clk 0:00:03.7]} 64. Kxf2 {[%clk 0:00:02.5]} 1/2-1/2

[Event "Live Chess"]
[Site "Chess.com"]
[Date "2023.05.21"]
[Round "-"]
[White "LL220284LL"]
[Black "The_Straightforward_Rook"]
[Result "0-1"]
[WhiteElo "2299"]
[BlackElo "1957"]
[TimeControl "300"]
[EndTime "5:18:56 PDT"]
[Termination "The_Straightforward_Rook won by checkmate"]

1. c4 {[%clk 0:04:53.6]} 1... e5 {[%clk 0:04:58.2]} 2. g3 {[%clk 0:04:46.4]}
2... Nf6 {[%clk 0:04:56.5]} 3. Bg2 {[%clk 0:04:45.2]} 3... c6 {[%clk 0:04:56]}
4. d4 {[%clk 0:04:43.1]} 4... e4 {[%clk 0:04:54.5]} 5. d5 {[%clk 0:04:41.5]}
5... Bb4+ {[%clk 0:04:44.4]} 6. Bd2 {[%clk 0:04:39.2]} 6... Qe7 {[%clk
0:04:41.3]} 7. a3 {[%clk 0:04:37.4]} 7... Bxd2+ {[%clk 0:04:37.5]} 8. Qxd2
{[%clk 0:04:37.3]} 8... cxd5 {[%clk 0:04:34.5]} 9. cxd5 {[%clk 0:04:37.2]} 9...
O-O {[%clk 0:04:27.8]} 10. Nc3 {[%clk 0:04:34.9]} 10... d6 {[%clk 0:04:25.2]}
11. Nxe4 {[%clk 0:04:32.3]} 11... Nxe4 {[%clk 0:04:21.9]} 12. Qd4 {[%clk
0:04:25.3]} 12... Re8 {[%clk 0:04:17.8]} 13. Nf3 {[%clk 0:04:23]} 13... Nxg3
{[%clk 0:04:06.3]} 14. e3 {[%clk 0:04:18.6]} 14... Nxh1 {[%clk 0:04:04.5]} 15.
Bxh1 {[%clk 0:04:18.5]} 15... Bf5 {[%clk 0:03:55.6]} 16. Qf4 {[%clk 0:04:14.7]}
16... Qe4 {[%clk 0:03:50.3]} 17. Qg5 {[%clk 0:04:11.7]} 17... h6 {[%clk
0:03:48.4]} 18. Qg1 {[%clk 0:04:10.1]} 18... Qc2 {[%clk 0:03:45.2]} 19. Nd4
{[%clk 0:04:08]} 19... Qxb2 {[%clk 0:03:41.4]} 20. Rd1 {[%clk 0:04:06.9]} 20...
Bg6 {[%clk 0:03:31.3]} 21. Bf3 {[%clk 0:04:02.5]} 21... Nd7 {[%clk 0:03:19.9]}
22. Qg3 {[%clk 0:03:59.7]} 22... Ne5 {[%clk 0:03:17]} 23. Be2 {[%clk 0:03:59.5]}
23... Rac8 {[%clk 0:03:11.7]} 24. h4 {[%clk 0:03:58]} 24... Rc1 {[%clk
0:03:10.3]} 25. h5 {[%clk 0:03:56.6]} 25... Qc3+ {[%clk 0:03:06]} 26. Kf1 {[%clk
0:03:55.2]} 26... Bd3 {[%clk 0:02:56.7]} 27. Kg2 {[%clk 0:03:50.1]} 27... Rxd1
{[%clk 0:02:47.3]} 28. Bxd1 {[%clk 0:03:48.7]} 28... Be4+ {[%clk 0:02:46.6]} 29.
Kh2 {[%clk 0:03:47]} 29... Qd2 {[%clk 0:02:40.6]} 30. Ba4 {[%clk 0:03:45.7]}
30... Rc8 {[%clk 0:02:33.9]} 31. Bb5 {[%clk 0:03:42.5]} 31... Rc1 {[%clk
0:02:30.5]} 32. Be8 {[%clk 0:03:35.5]} 32... Rh1# {[%clk 0:02:28.9]} 0-1

[Event "Live Chess"]
[Site "Chess.com"]
[Date "2023.05.21"]
[Round "-"]
[White "mliszewski"]
[Black "zdanevych"]
[Result "1-0"]
[WhiteElo "1807"]
[BlackElo "1524"]
[TimeControl "300"]
[EndTime "5:19:15 PDT"]
[Termination "mliszewski won by resignation"]

1. d4 {[%clk 0:04:58.5]} 1... d5 {[%clk 0:04:59.4]} 2. Bf4 {[%clk 0:04:57.6]}
2... c5 {[%clk 0:04:58.6]} 3. e4 {[%clk 0:04:56.4]} 3... cxd4 {[%clk 0:04:57.9]}
4. Qxd4 {[%clk 0:04:55.1]} 4... Nf6 {[%clk 0:04:55.9]} 5. Nc3 {[%clk 0:04:44.3]}
5... Nc6 {[%clk 0:04:54]} 6. Bb5 {[%clk 0:04:43]} 6... a6 {[%clk 0:04:52.4]} 7.
Bxc6+ {[%clk 0:04:42]} 7... bxc6 {[%clk 0:04:52.3]} 8. exd5 {[%clk 0:04:39.1]}
8... cxd5 {[%clk 0:04:52.2]} 9. O-O-O {[%clk 0:04:38]} 9... e6 {[%clk
0:04:48.8]} 10. Nf3 {[%clk 0:04:30.1]} 10... Be7 {[%clk 0:04:47.6]} 11. Ne5
{[%clk 0:04:22.4]} 11... O-O {[%clk 0:04:44.4]} 12. Nc6 {[%clk 0:04:20.8]} 12...
Qe8 {[%clk 0:04:35.8]} 13. Nxe7+ {[%clk 0:04:19.7]} 13... Qxe7 {[%clk
0:04:35.7]} 14. Be5 {[%clk 0:04:19]} 14... Bd7 {[%clk 0:04:29.2]} 15. g4 {[%clk
0:04:17.7]} 15... g6 {[%clk 0:04:16.8]} 16. Bxf6 {[%clk 0:04:15.2]} 1-0

[Event "Live Chess"]
[Site "Chess.com"]
[Date "2023.05.21"]
[Round "-"]
[White "chessfiction"]
[Black "mach247"]
[Result "1-0"]
[WhiteElo "2313"]
[BlackElo "1352"]
[TimeControl "300"]
[EndTime "5:19:17 PDT"]
[Termination "chessfiction won by checkmate"]

1. e4 {[%clk 0:04:59.2]} 1... d5 {[%clk 0:04:59.3]} 2. d4 {[%clk 0:04:56.8]}
2... dxe4 {[%clk 0:04:58.3]} 3. f3 {[%clk 0:04:56.1]} 3... exf3 {[%clk
0:04:57.1]} 4. Nxf3 {[%clk 0:04:56]} 4... Nf6 {[%clk 0:04:56.1]} 5. Bc4 {[%clk
0:04:55.6]} 5... e6 {[%clk 0:04:55.3]} 6. O-O {[%clk 0:04:54.1]} 6... Be7 {[%clk
0:04:52.7]} 7. Kh1 {[%clk 0:04:52.6]} 7... O-O {[%clk 0:04:51.5]} 8. Qe1 {[%clk
0:04:51.8]} 8... Nbd7 {[%clk 0:04:50]} 9. Nc3 {[%clk 0:04:51.1]} 9... Nb6 {[%clk
0:04:49.5]} 10. Bd3 {[%clk 0:04:50.6]} 10... Re8 {[%clk 0:04:42.2]} 11. Qh4
{[%clk 0:04:49.6]} 11... h6 {[%clk 0:04:30.3]} 12. Bxh6 {[%clk 0:04:47.6]} 12...
gxh6 {[%clk 0:04:28.9]} 13. Qxh6 {[%clk 0:04:47.5]} 13... Nh7 {[%clk 0:04:27.4]}
14. Bxh7+ {[%clk 0:04:44.7]} 14... Kh8 {[%clk 0:04:24.5]} 15. Bg6+ {[%clk
0:04:44.3]} 15... Kg8 {[%clk 0:04:23.5]} 16. Qh7+ {[%clk 0:04:44.2]} 16... Kf8
{[%clk 0:04:21.6]} 17. Qxf7# {[%clk 0:04:44.1]} 1-0